fUST/lending_fUST_20240405
["ID","MTS","AMOUNT","RATE_DAILY","PERIOD"]
[321515970,1712281844420,-2225.36,0.00046574,7]
[321515971,1712281844429,-3307.28810515,0.00046575,5]
[321515972,1712281844438,-503.11213919,0.00046575,5]
[321515973,1712281844447,-500.0,0.00046575,5]
[321515974,1712281844455,-500.0,0.00046575,5]
[321515975,1712281844465,-500.0,0.00046575,5]
[321515976,1712281844474,-500.0,0.00046575,5]
[321515977,1712281844483,-500.0,0.00046575,5]
[321515978,1712281844492,-500.0,0.00046575,5]
[321515979,1712281844501,-500.0,0.00046575,5]
[321515980,1712281844510,-500.0,0.00046575,5]
[321515981,1712281844519,-500.0,0.00046575,5]
[321515982,1712281844529,-500.0,0.00046575,5]
[321515983,1712281844539,-500.0,0.00046575,5]
[321515984,1712281844548,-500.0,0.00046575,5]
[321515985,1712281844557,-500.0,0.00046575,5]
[321515986,1712281844567,-516.18083704,0.00046575,5]
[321515987,1712281844576,-500.0,0.00046575,5]
[321515988,1712281844585,-507.09565776,0.00046575,5]
[321515989,1712281844594,-513.64375556,0.00046575,5]
[321515990,1712281844604,-500.0,0.00046575,5]
[321515991,1712281844613,-500.0,0.00046575,5]
[321515992,1712281844622,-500.0,0.00046575,5]
[321515993,1712281844631,-502.05085911,0.00046575,5]
[321515994,1712281844640,-322.71472644,0.00046575,5]
[321515995,1712281844650,-501.94390694,0.00046575,5]
[321515996,1712281844659,-513.5757299,0.00046575,5]
[321515997,1712281844668,-506.60808129,0.00046575,5]
[321515998,1712281844677,-506.28946276,0.00046575,5]
[321515999,1712281844686,-500.0,0.00046575,5]
[321516000,1712281844695,-502.23787213,0.00046575,5]
[321516001,1712281844704,-500.0,0.00046575,5]
[321516002,1712281844713,-503.9609391,0.00046575,5]
[321516003,1712281844722,-639.69385496,0.00046575,5]
[321516004,1712281844731,-521.55,0.00046575,5]
[321516005,1712281844740,-489.14506318,0.00046575,5]
[321516006,1712281844749,-592.96352232,0.00046575,5]
[321516007,1712281844759,-500.0,0.00046575,5]
[321516008,1712281844768,-507.2259143,0.00046575,5]
[321516009,1712281844777,-557.8983909,0.00046575,5]
[321516010,1712281844786,-1153.11,0.00046575,5]
[321516011,1712281844795,-500.0,0.00046575,5]
[321516012,1712281844804,-500.0,0.00046575,5]
[321516013,1712281844814,-500.0,0.00046575,5]
[321516014,1712281844823,-500.0,0.00046575,5]
[321516015,1712281844832,-500.0,0.00046575,5]
[321516016,1712281844842,-500.0,0.00046575,5]
[321516017,1712281844851,-506.3982329,0.00046575,5]
[321516018,1712281844861,-1024.0,0.00046575,5]
[321516019,1712281844871,-500.0,0.00046575,5]
[321516020,1712281844881,-500.0,0.00046575,5]
[321516021,1712281844891,-500.0,0.00046575,5]
[321516022,1712281844900,-500.0,0.00046575,5]
[321516023,1712281844910,-500.0,0.00046575,5]
[321516024,1712281844919,-5702.52,0.00046575,5]
[321516025,1712281844928,-500.0,0.00046575,5]
[321516026,1712281844939,-500.0,0.00046575,5]
[321516027,1712281844950,-1046.84,0.00046575,5]
[321516028,1712281844960,-500.0,0.00046575,5]
[321516029,1712281844971,-500.0,0.00046575,5]
[321516030,1712281844982,-500.0,0.00046575,5]
[321516031,1712281844993,-500.0,0.00046575,5]
[321516032,1712281845005,-500.0,0.00046575,5]
[321516033,1712281845015,-7041.83,0.00046575,5]
[321516034,1712281845023,-620.32,0.00046575,5]
[321516035,1712281845035,-293.34539338,0.00046575,5]
[321516036,1712281845044,-500.0,0.00046575,5]
[321516037,1712281845053,-500.0,0.00046575,5]
[321516038,1712281845062,-500.0,0.00046575,5]
[321516039,1712281845071,-16733.95,0.00046575,5]
[321516040,1712281845080,-787.26,0.00046575,5]
[321516041,1712281845089,-2754.87,0.00046575,5]
[321516042,1712281845098,-500.0,0.00046575,5]
[321516043,1712281845107,-500.0,0.00046575,5]
[321516044,1712281845116,-500.0,0.00046575,5]
[321516045,1712281845127,-500.0,0.00046575,5]
[321516046,1712281845136,-5023.03,0.00046575,5]
[321516047,1712281845145,-7776.56,0.00046575,5]
[321516048,1712281845154,-500.0,0.00046575,5]
[321516049,1712281845163,-500.0,0.00046575,5]
[321516050,1712281845177,-500.0,0.00046575,5]
[321516051,1712281845187,-3779.98,0.00046575,7]
[321516052,1712281845196,-500.0,0.00046575,5]
[321516053,1712281845206,-685.55,0.00046575,5]
[321516054,1712281845216,-500.0,0.00046575,5]
[321516055,1712281845225,-500.0,0.00046575,5]
[321516056,1712281845235,-500.0,0.00046575,5]
[321516057,1712281845244,-500.0,0.00046575,5]
[321516058,1712281845254,-500.0,0.00046575,5]
[321516059,1712281845267,-647.16,0.00046575,5]
[321516060,1712281845276,-546.28,0.00046575,5]
[321516061,1712281845285,-500.0,0.00046575,5]
[321516062,1712281845295,-1258.29,0.00046575,5]
[321516063,1712281845305,-555.19701153,0.00046575,5]
[321516064,1712281845314,-555.32,0.00046575,5]
[321516065,1712281845324,-500.0,0.00046575,5]
[321516066,1712281845333,-500.0,0.00046575,5]
[321516067,1712281845342,-500.0,0.00046575,5]
[321516068,1712281845351,-500.0,0.00046575,5]
[321516069,1712281845361,-15513.61,0.00046575,5]
[321516070,1712281845371,-500.0,0.00046575,5]
[321516071,1712281845379,-736.17,0.00046575,5]
[321516072,1712281845388,-2998.55,0.00046575,5]
[321516073,1712281845398,-542.67,0.00046575,5]
[321516074,1712281845407,-1336.28,0.00046575,5]
[321516075,1712281845416,-1000.0,0.00046575,5]
[321516076,1712281845425,-500.0,0.00046575,5]
[321516077,1712281845435,-1163.43,0.00046575,5]
[321516078,1712281845444,-5000.0,0.00046575,30]
[321516079,1712281845453,-5000.0,0.00046575,30]
[321516080,1712281845463,-1987.19082105,0.00046575,30]
[321516081,1712281845472,-500.0,0.00046575,5]
[321516082,1712281845481,-500.0,0.00046575,5]
[321516083,1712281845490,-414.79245905,0.00046575,5]
[321516084,1712281845500,-500.0,0.00046575,5]
[321516085,1712281845509,-532.77709205,0.00046575,5]
[321516086,1712281845518,-500.0,0.00046575,5]
[321516087,1712281845527,-500.0,0.00046575,5]
[321516088,1712281845537,-5975.55,0.00046575,5]
[321516089,1712281845546,-500.0,0.00046575,5]
[321516090,1712281845555,-500.0,0.00046575,5]
[321516091,1712281845564,-500.0,0.00046575,5]
[321516092,1712281845573,-500.0,0.00046575,5]
[321516093,1712281845581,-2114.82,0.00046575,5]
[321516094,1712281845591,-500.0,0.00046575,5]
[321516095,1712281845601,-500.0,0.00046575,5]
[321516096,1712281845610,-500.0,0.00046575,5]
[321516097,1712281845621,-502.50564681,0.00046575,5]
[321516098,1712281845630,-576.09,0.00046575,5]
[321516099,1712281845639,-721.82,0.00046575,5]
[321516100,1712281845649,-639.22,0.00046575,5]
[321516101,1712281845658,-500.0,0.00046575,5]
[321516102,1712281845667,-639.22,0.00046575,5]
[321516103,1712281845676,-639.22,0.00046575,5]
[321516104,1712281845686,-639.22,0.00046575,5]
[321516105,1712281845695,-1000.0,0.00046575,3]
[321516106,1712281845705,-200.0,0.00046575,30]
[321516107,1712281845714,-400.49058297,0.00046575,30]
[321516108,1712281845723,-500.0,0.00046628,2]
[321516109,1712281845732,-500.0,0.00046683,2]
[321516110,1712281845742,-500.0,0.00046738,2]
[321516111,1712281845751,-500.0,0.00046792,2]
[321516112,1712281845760,-195.23135111,0.0004684,31]
[321516113,1712281845769,-217.93046581,0.00046847,2]
[321516114,1712281845778,-202.50438416,0.00046849,5]
[321516115,1712281845787,-500.0,0.00046849,5]
[321516116,1712281845797,-500.0,0.00046849,5]
[321516117,1712281845806,-500.0,0.00046849,5]
[321516118,1712281845817,-500.0,0.00046849,5]
[321516119,1712281845826,-500.0,0.00046849,5]
[321516120,1712281845836,-500.0,0.00046849,5]
[321516121,1712281845849,-500.0,0.00046849,5]
[321516122,1712281845858,-500.0,0.00046849,5]
[321516123,1712281845869,-500.0,0.00046849,5]
[321516124,1712281845878,-500.0,0.00046849,5]
[321516125,1712281845887,-500.0,0.00046849,5]
[321516126,1712281845896,-500.0,0.00046849,5]
[321516127,1712281845905,-362.15271948,0.00046849,5]
[321516128,1712281845914,-500.0,0.00046849,5]
[321516129,1712281845923,-500.0,0.00046849,5]
[321516130,1712281845933,-500.0,0.00046849,5]
[321516131,1712281845942,-500.0,0.00046849,5]
[321516132,1712281845951,-500.0,0.00046849,5]
[321516133,1712281845962,-182.905119,0.00046849,7]
[321516134,1712281845971,-521.55,0.00046849,5]
[321516136,1712281845979,-500.0,0.00046849,5]
[321516138,1712281845988,-1153.11,0.00046849,5]
[321516140,1712281845997,-500.0,0.00046849,5]
[321516142,1712281846006,-500.0,0.00046849,5]
[321516143,1712281846015,-500.0,0.00046849,5]
[321516144,1712281846024,-500.0,0.00046849,5]
[321516145,1712281846034,-500.0,0.00046849,5]
[321516146,1712281846045,-500.0,0.00046849,5]
[321516147,1712281846054,-161.268234,0.00046849,7]
[321516148,1712281846062,-1024.0,0.00046849,5]
[321516149,1712281846071,-500.0,0.00046849,5]
[321516150,1712281846081,-500.0,0.00046849,5]
[321516151,1712281846090,-151.0,0.00046849,7]
[321516152,1712281846099,-151.0,0.00046849,7]
[321516153,1712281846108,-154.012304,0.00046849,7]
[321516154,1712281846119,-500.0,0.00046849,5]
[321516155,1712281846128,-500.0,0.00046849,5]
[321516157,1712281846137,-500.0,0.00046849,5]
[321516159,1712281846146,-5702.52,0.00046849,5]
[321516161,1712281846154,-500.0,0.00046849,5]
[321516162,1712281846163,-193.333263,0.00046849,7]
[321516163,1712281846174,-507.85599407,0.00046849,5]
[321516164,1712281846183,-1046.84,0.00046849,5]
[321516165,1712281846193,-500.0,0.00046849,5]
[321516166,1712281846202,-500.0,0.00046849,5]
[321516167,1712281846211,-500.0,0.00046849,5]
[321516168,1712281846220,-500.0,0.00046849,5]
[321516169,1712281846229,-500.0,0.00046849,5]
[321516170,1712281846238,-7041.83,0.00046849,5]
[321516171,1712281846247,-620.32,0.00046849,5]
[321516172,1712281846255,-500.0,0.00046849,5]
[321516173,1712281846265,-510.96603401,0.00046849,5]
[321516174,1712281846274,-218.50672808,0.00046849,5]
[321516175,1712281846284,-16733.95,0.00046849,5]
[321516176,1712281846293,-787.26,0.00046849,5]
[321516177,1712281846302,-2754.87,0.00046849,5]
[321516178,1712281846311,-151.0,0.00046849,7]
[321516179,1712281846321,-151.0,0.00046849,7]
[321516180,1712281846330,-151.0,0.00046849,7]
[321516181,1712281846340,-500.0,0.00046849,5]
[321516182,1712281846349,-500.0,0.00046849,5]
[321516183,1712281846359,-500.0,0.00046849,5]
[321516184,1712281846370,-5023.03,0.00046849,5]
[321516185,1712281846380,-7776.56,0.00046849,5]
[321516186,1712281846390,-151.0,0.00046849,7]
[321516187,1712281846399,-588.1570732,0.00046849,5]
[321516188,1712281846408,-151.0,0.00046849,7]
[321516189,1712281846418,-151.0,0.00046849,7]
[321516190,1712281846427,-500.0,0.00046849,5]
[321516191,1712281846436,-500.0,0.00046849,5]
[321516192,1712281846446,-212.158669,0.00046849,7]
[321516193,1712281846455,-3779.98,0.00046849,7]
[321516194,1712281846464,-509.42788603,0.00046849,5]
[321516195,1712281846473,-685.55,0.00046849,5]
[321516196,1712281846483,-567.41951022,0.00046849,5]
[321516197,1712281846492,-500.0,0.00046849,5]
[321516198,1712281846502,-500.0,0.00046849,5]
[321516199,1712281846512,-500.0,0.00046849,5]
[321516200,1712281846521,-500.0,0.00046849,5]
[321516201,1712281846530,-647.16,0.00046849,5]
[321516202,1712281846540,-546.28,0.00046849,5]
[321516203,1712281846549,-500.0,0.00046849,5]
[321516204,1712281846559,-1258.29,0.00046849,5]
[321516205,1712281846568,-555.32,0.00046849,5]
[321516206,1712281846577,-500.0,0.00046849,5]
[321516207,1712281846587,-523.41913237,0.00046849,5]
[321516208,1712281846596,-500.0,0.00046849,5]
[321516209,1712281846606,-500.0,0.00046849,5]
[321516210,1712281846616,-15513.61,0.00046849,5]
[321516211,1712281846625,-500.0,0.00046849,5]
[321516212,1712281846634,-736.17,0.00046849,5]
[321516213,1712281846642,-2998.55,0.00046849,5]
[321516214,1712281846651,-542.67,0.00046849,5]
[321516215,1712281846661,-1336.28,0.00046849,5]
[321516216,1712281846670,-1000.0,0.00046849,5]
[321516217,1712281846679,-500.0,0.00046849,5]
[321516218,1712281846688,-1163.43,0.00046849,5]
[321516219,1712281846697,-500.0,0.00046849,5]
[321516220,1712281846706,-500.0,0.00046849,5]
[321516221,1712281846715,-500.0,0.00046849,5]
[321516222,1712281846725,-500.0,0.00046849,5]
[321516223,1712281846736,-5975.55,0.00046849,5]
[321516224,1712281846745,-500.0,0.00046849,5]
[321516225,1712281846754,-500.0,0.00046849,5]
[321516226,1712281846764,-500.0,0.00046849,5]
[321516227,1712281846774,-500.0,0.00046849,5]
[321516228,1712281846783,-2114.82,0.00046849,5]
[321516229,1712281846792,-500.0,0.00046849,5]
[321516230,1712281846801,-500.0,0.00046849,5]
[321516231,1712281846895,-500.0,0.00046849,5]
[321516232,1712281846905,-576.09,0.00046849,5]
[321516233,1712281846914,-721.82,0.00046849,5]
[321516234,1712281846924,-508.93939548,0.00046849,5]
[321516235,1712281846933,-202.5506203,0.00046849,2]
[321516236,1712281846943,-238.74161618,0.0004688,120]
[321516237,1712281846954,-155.54094882,0.00046992,30]
[321516238,1712281846964,-165.0,0.00047,90]
[321516239,1712281846976,-155.54094882,0.00047074,30]
[321516240,1712281846985,-2225.36,0.00047122,7]
[321516241,1712281846995,-500.0,0.00047123,5]
[321516242,1712281847005,-500.0,0.00047123,5]
[321516243,1712281847014,-535.99597931,0.00047123,5]
[321516244,1712281847025,-152.72997428,0.00047123,5]
[321516245,1712281847035,-500.0,0.00047123,5]
[321516246,1712281847045,-500.0,0.00047123,5]
[321516247,1712281847054,-500.0,0.00047123,5]
[321516248,1712281847063,-500.0,0.00047123,5]
[321516249,1712281847072,-500.0,0.00047123,5]
[321516250,1712281847082,-500.0,0.00047123,5]
[321516251,1712281847091,-500.0,0.00047123,5]
[321516252,1712281847100,-500.0,0.00047123,5]
[321516253,1712281847110,-629.89452688,0.00047123,5]
[321516254,1712281847123,-500.0,0.00047123,5]
[321516255,1712281847133,-208.07396459,0.00047123,5]
[321516256,1712281847142,-500.0,0.00047123,5]
[321516257,1712281847151,-500.0,0.00047123,5]
[321516258,1712281847161,-521.55,0.00047123,5]
[321516259,1712281847170,-620.61866368,0.00047123,5]
[321516260,1712281847180,-1153.11,0.00047123,5]
[321516261,1712281847190,-500.0,0.00047123,5]
[321516262,1712281847199,-634.6804023,0.00047123,5]
[321516263,1712281847208,-500.0,0.00047123,5]
[321516264,1712281847217,-500.0,0.00047123,5]
[321516265,1712281847226,-484.50850888,0.00047123,5]
[321516266,1712281847235,-500.0,0.00047123,5]
[321516267,1712281847244,-1024.0,0.00047123,5]
[321516268,1712281847253,-515.21425823,0.00047123,5]
[321516269,1712281847263,-500.0,0.00047123,5]
[321516270,1712281847273,-500.0,0.00047123,5]
[321516271,1712281847282,-286.52862305,0.00047123,5]
[321516272,1712281847291,-500.0,0.00047123,5]
[321516273,1712281847300,-5702.52,0.00047123,5]
[321516274,1712281847309,-500.0,0.00047123,5]
[321516275,1712281847318,-1046.84,0.00047123,5]
[321516276,1712281847327,-500.0,0.00047123,5]
[321516277,1712281847337,-500.0,0.00047123,5]
[321516278,1712281847345,-500.0,0.00047123,5]
[321516279,1712281847355,-500.0,0.00047123,5]
[321516280,1712281847364,-500.0,0.00047123,5]
[321516281,1712281847375,-620.32,0.00047123,5]
[321516282,1712281847385,-7041.83,0.00047123,5]
[321516283,1712281847394,-500.0,0.00047123,5]
[321516284,1712281847403,-16733.95,0.00047123,5]
[321516285,1712281847412,-787.26,0.00047123,5]
[321516286,1712281847422,-2754.87,0.00047123,5]
[321516287,1712281847431,-183.224128,0.00047123,7]
[321516288,1712281847440,-500.0,0.00047123,5]
[321516289,1712281847450,-500.0,0.00047123,5]
[321516290,1712281847460,-500.0,0.00047123,5]
[321516291,1712281847469,-5023.03,0.00047123,5]
[321516292,1712281847479,-7776.56,0.00047123,5]
[321516293,1712281847488,-151.0,0.00047123,7]
[321516294,1712281847497,-151.0,0.00047123,7]
[321516295,1712281847506,-500.0,0.00047123,5]
[321516296,1712281847516,-500.0,0.00047123,5]
[321516297,1712281847525,-3779.98,0.00047123,7]
[321516298,1712281847535,-685.55,0.00047123,5]
[321516299,1712281847544,-500.0,0.00047123,5]
[321516300,1712281847554,-154.95792238,0.00047123,5]
[321516301,1712281847563,-500.0,0.00047123,5]
[321516302,1712281847572,-516.95930639,0.00047123,5]
[321516303,1712281847581,-647.16,0.00047123,5]
[321516304,1712281847591,-546.28,0.00047123,5]
[321516305,1712281847600,-500.0,0.00047123,5]
[321516306,1712281847609,-1258.29,0.00047123,5]
[321516307,1712281847620,-555.32,0.00047123,5]
[321516308,1712281847629,-500.0,0.00047123,5]
[321516309,1712281847637,-500.0,0.00047123,5]
[321516310,1712281847646,-192.55612524,0.00047123,5]
[321516311,1712281847655,-15513.61,0.00047123,5]
[321516312,1712281847664,-500.0,0.00047123,5]
[321516313,1712281847674,-736.17,0.00047123,5]
[321516314,1712281847684,-2998.55,0.00047123,5]
[321516315,1712281847693,-542.67,0.00047123,5]
[321516316,1712281847704,-1336.28,0.00047123,5]
[321516317,1712281847714,-1000.0,0.00047123,5]
[321516318,1712281847724,-500.0,0.00047123,5]
[321516319,1712281847733,-1163.43,0.00047123,5]
[321516320,1712281847743,-500.0,0.00047123,5]
[321516321,1712281847753,-406.97628851,0.00047123,5]
[321516322,1712281847762,-500.0,0.00047123,5]
[321516323,1712281847771,-500.0,0.00047123,5]
[321516324,1712281847781,-5975.55,0.00047123,5]
[321516325,1712281847790,-500.0,0.00047123,5]
[321516326,1712281847799,-500.0,0.00047123,5]
[321516327,1712281847808,-500.0,0.00047123,5]
[321516328,1712281847817,-500.0,0.00047123,5]
[321516329,1712281847826,-2114.82,0.00047123,5]
[321516330,1712281847836,-500.0,0.00047123,5]
[321516331,1712281847847,-612.10925293,0.00047123,5]
[321516332,1712281847857,-500.0,0.00047123,5]
[321516333,1712281847868,-576.09,0.00047123,5]
[321516334,1712281847878,-721.82,0.00047123,5]
[321516335,1712281847888,-160.03989228,0.00047297,2]
[321516336,1712281847898,-4533.45249495,0.00047297,2]
[321516337,1712281847908,-151.0,0.00047297,7]
[321516338,1712281847917,-309.01562101,0.00047395,4]
[321516339,1712281847928,-902.0,0.00047397,30]
[321516340,1712281847938,-500.0,0.00047397,5]
[321516341,1712281847947,-500.0,0.00047397,5]
[321516342,1712281847956,-500.0,0.00047397,5]
[321516343,1712281847966,-500.0,0.00047397,5]
[321516344,1712281847976,-500.0,0.00047397,5]
[321516345,1712281847985,-500.0,0.00047397,5]
[321516346,1712281847995,-500.0,0.00047397,5]
[321516347,1712281848004,-500.0,0.00047397,5]
[321516348,1712281848014,-500.0,0.00047397,5]
[321516349,1712281848023,-551.81129447,0.00047397,5]
[321516350,1712281848032,-500.0,0.00047397,5]
[321516351,1712281848041,-500.0,0.00047397,5]
[321516352,1712281848051,-500.0,0.00047397,5]
[321516353,1712281848060,-521.55,0.00047397,5]
[321516354,1712281848070,-1153.11,0.00047397,5]
[321516355,1712281848079,-500.0,0.00047397,5]
[321516356,1712281848089,-500.0,0.00047397,5]
[321516357,1712281848098,-500.0,0.00047397,5]
[321516358,1712281848107,-500.0,0.00047397,5]
[321516359,1712281848117,-1024.0,0.00047397,5]
[321516360,1712281848126,-500.0,0.00047397,5]
[321516361,1712281848136,-500.0,0.00047397,5]
[321516362,1712281848145,-500.0,0.00047397,5]
[321516363,1712281848154,-5702.52,0.00047397,5]
[321516364,1712281848163,-500.0,0.00047397,5]
[321516365,1712281848176,-1046.84,0.00047397,5]
[321516366,1712281848185,-500.0,0.00047397,5]
[321516367,1712281848195,-533.18935209,0.00047397,5]
[321516368,1712281848204,-500.0,0.00047397,5]
[321516369,1712281848214,-500.0,0.00047397,5]
[321516370,1712281848223,-500.0,0.00047397,5]
[321516371,1712281848233,-620.32,0.00047397,5]
[321516372,1712281848242,-7041.83,0.00047397,5]
[321516373,1712281848252,-500.0,0.00047397,5]
[321516374,1712281848261,-16733.95,0.00047397,5]
[321516375,1712281848272,-787.26,0.00047397,5]
[321516376,1712281848281,-2754.87,0.00047397,5]
[321516377,1712281848290,-500.0,0.00047397,5]
[321516378,1712281848299,-500.0,0.00047397,5]
[321516379,1712281848308,-500.0,0.00047397,5]
[321516380,1712281848318,-5023.03,0.00047397,5]
[321516381,1712281848328,-7776.56,0.00047397,5]
[321516382,1712281848337,-151.0,0.00047397,7]
[321516383,1712281848345,-500.0,0.00047397,5]
[321516384,1712281848354,-151.0,0.00047397,7]
[321516385,1712281848363,-500.0,0.00047397,5]
[321516386,1712281848375,-3779.98,0.00047397,7]
[321516387,1712281848385,-685.55,0.00047397,5]
[321516388,1712281848394,-500.0,0.00047397,5]
[321516389,1712281848403,-500.0,0.00047397,5]
[321516390,1712281848413,-647.16,0.00047397,5]
[321516391,1712281848422,-546.28,0.00047397,5]
[321516392,1712281848431,-508.00245199,0.00047397,5]
[321516393,1712281848440,-1258.29,0.00047397,5]
[321516394,1712281848451,-555.32,0.00047397,5]
[321516395,1712281848461,-500.0,0.00047397,5]
[321516396,1712281848470,-500.0,0.00047397,5]
[321516397,1712281848480,-15513.61,0.00047397,5]
[321516398,1712281848489,-500.0,0.00047397,5]
[321516399,1712281848498,-736.17,0.00047397,5]
[321516400,1712281848507,-2998.55,0.00047397,5]
[321516401,1712281848517,-542.67,0.00047397,5]
[321516402,1712281848526,-1336.28,0.00047397,5]
[321516403,1712281848535,-1000.0,0.00047397,5]
[321516404,1712281848544,-500.0,0.00047397,5]
[321516405,1712281848553,-1163.43,0.00047397,5]
[321516406,1712281848562,-186.1590981,0.00047397,5]
[321516407,1712281848572,-500.0,0.00047397,5]
[321516408,1712281848581,-500.0,0.00047397,5]
[321516409,1712281848590,-5975.55,0.00047397,5]
[321516410,1712281848599,-500.0,0.00047397,5]
[321516411,1712281848609,-500.0,0.00047397,5]
[321516412,1712281848620,-500.0,0.00047397,5]
[321516413,1712281848629,-500.0,0.00047397,5]
[321516414,1712281848638,-2114.82,0.00047397,5]
[321516415,1712281848647,-245.49111727,0.00047397,5]
[321516416,1712281848658,-500.0,0.00047397,5]
[321516417,1712281848667,-576.09,0.00047397,5]
[321516418,1712281848677,-721.82,0.00047397,5]
[321516419,1712281848687,-500.0,0.00047671,5]
[321516420,1712281848697,-500.0,0.00047671,5]
[321516421,1712281848707,-500.0,0.00047671,5]
[321516422,1712281848717,-500.0,0.00047671,5]
[321516423,1712281848726,-546.99413957,0.00047671,5]
[321516424,1712281848735,-500.0,0.00047671,5]
[321516425,1712281848745,-500.0,0.00047671,5]
[321516426,1712281848754,-500.0,0.00047671,5]
[321516427,1712281848763,-500.0,0.00047671,5]
[321516428,1712281848773,-500.0,0.00047671,5]
[321516429,1712281848782,-500.0,0.00047671,5]
[321516430,1712281848792,-500.0,0.00047671,5]
[321516431,1712281848802,-500.0,0.00047671,5]
[321516432,1712281848811,-521.55,0.00047671,5]
[321516433,1712281848821,-1153.11,0.00047671,5]
[321516434,1712281848830,-500.0,0.00047671,5]
[321516435,1712281848839,-500.0,0.00047671,5]
[321516436,1712281848849,-462.94610074,0.00047671,5]
[321516437,1712281848859,-500.0,0.00047671,5]
[321516438,1712281848870,-1024.0,0.00047671,5]
[321516439,1712281848879,-500.0,0.00047671,5]
[321516440,1712281848888,-207.97335753,0.00047671,5]
[321516441,1712281848897,-500.0,0.00047671,5]
[321516442,1712281848906,-5702.52,0.00047671,5]
[321516443,1712281848916,-500.0,0.00047671,5]
[321516444,1712281848925,-1046.84,0.00047671,5]
[321516445,1712281848934,-500.0,0.00047671,5]
[321516446,1712281848943,-500.0,0.00047671,5]
[321516447,1712281848953,-500.0,0.00047671,5]
[321516448,1712281848962,-500.0,0.00047671,5]
[321516449,1712281848971,-620.32,0.00047671,5]
[321516450,1712281848980,-7041.83,0.00047671,5]
[321516451,1712281848989,-602.26194185,0.00047671,5]
[321516452,1712281848998,-16733.95,0.00047671,5]
[321516453,1712281849008,-787.26,0.00047671,5]
[321516454,1712281849017,-2754.87,0.00047671,5]
[321516455,1712281849026,-500.0,0.00047671,5]
[321516456,1712281849037,-500.0,0.00047671,5]
[321516457,1712281849047,-500.0,0.00047671,5]
[321516458,1712281849057,-5023.03,0.00047671,5]
[321516459,1712281849066,-7776.56,0.00047671,5]
[321516460,1712281849076,-500.0,0.00047671,5]
[321516461,1712281849085,-151.0,0.00047671,7]
[321516462,1712281849094,-151.0,0.00047671,7]
[321516463,1712281849104,-500.0,0.00047671,5]
[321516464,1712281849113,-3779.98,0.00047671,7]
[321516465,1712281849124,-685.55,0.00047671,5]
[321516466,1712281849133,-500.0,0.00047671,5]
[321516467,1712281849142,-500.0,0.00047671,5]
[321516468,1712281849151,-647.16,0.00047671,5]
[321516469,1712281849159,-546.28,0.00047671,5]
[321516470,1712281849168,-1258.29,0.00047671,5]
[321516471,1712281849258,-555.32,0.00047671,5]
[321516472,1712281849267,-500.0,0.00047671,5]
[321516473,1712281849277,-500.0,0.00047671,5]
[321516474,1712281849286,-15513.61,0.00047671,5]
[321516475,1712281849295,-500.0,0.00047671,5]
[321516476,1712281849304,-736.17,0.00047671,5]